lending/lending_fUSD_20240603
["ID","MTS","AMOUNT","RATE_DAILY","PERIOD"]
[328487795,1717439649759,-500.0,0.00046,120]
[328487796,1717439649782,-500.0,0.00046,120]
[328487797,1717439649806,-500.0,0.00046,120]
[328487798,1717439649831,-850.0,0.00046,120]
[328487799,1717439649855,-2533.44,0.00046,120]
[328487800,1717439649879,-1580.60307185,0.00046,120]
[328487801,1717439649904,-8383.2951372,0.00046,90]
[328487802,1717439649928,-509.2,0.00046,120]
[328487803,1717439649954,-166.0,0.00046,96]
[328487804,1717439649978,-515.2,0.00046,120]
[328487805,1717439650001,-256.3,0.00046,120]
[328487806,1717439650028,-365.56735782,0.00046,120]
[328487807,1717439650053,-10137.34944492,0.00046,60]
[328487808,1717439650078,-655.86635738,0.00046,120]
[328487809,1717439650104,-3366.87489315,0.00046,120]
[328487810,1717439650130,-5000.0,0.00046,120]
[328487811,1717439650154,-2500.0,0.000461,120]
[328487812,1717439650178,-2278.79966392,0.000461,120]
[328487813,1717439650204,-5000.0,0.00046125,120]
[328487814,1717439650229,-151.0,0.00046164,120]
[328487815,1717439650254,-2500.0,0.000462,120]
[328487816,1717439650279,-387.8550242,0.00046223,120]
[328487817,1717439650305,-5000.0,0.0004625,120]
[328487818,1717439650330,-5000.0,0.00046375,120]
[328487819,1717439650354,-151.0,0.00046384,120]
[328487820,1717439650382,-406.0,0.00046496,120]
[328487821,1717439650409,-1000.0,0.00046499,120]
[328487822,1717439650435,-120187.15294291,0.000465,50]
[328487823,1717439650460,-461.90234431,0.000465,120]
[328487824,1717439650488,-5000.0,0.000465,120]
[328487825,1717439650514,-183.48542306,0.00046575,120]
[328487826,1717439650539,-30000.0,0.00046575,90]
[328487827,1717439650564,-125891.42,0.00046575,60]
[328487828,1717439650729,216.7292781,0.00046575,33]
[328487829,1717439650763,1168.69448636,0.00046575,33]
[328487830,1717439650791,3153.69500927,0.00046575,33]
[328487831,1717439650922,658.54643572,0.00033,120]
[328487832,1717439651218,155.8488,0.000331,30]
[328487833,1717439652839,417.0,0.000408,30]
[328487834,1717439653293,417.0,0.000413,31]
[328487835,1717439653711,417.0,0.000418,31]
[328487836,1717439654114,417.0,0.000423,32]
[328487837,1717439654260,5767.67279583,0.00035,30]
[328487838,1717439654533,417.0,0.000428,32]
[328487840,1717439655043,182.48525661,0.00038,120]
[328487842,1717439659357,1269.49213904,0.000389,30]
[328487843,1717439662833,1000.0,0.00046575,120]
[328487844,1717439670005,26661.52278066,6.94e-05,2]
[328487852,1717439703655,187.62,0.00019715,15]
[328487853,1717439704725,150.5,0.00019715,15]
[328487854,1717439705391,150.5,0.00019705,15]
[328487855,1717439706044,210.93,0.00019695,15]
[328487856,1717439770142,1576.884524,0.000308,30]
[328487857,1717439770484,1576.884524,0.000308,30]
[328487858,1717439823840,150.5,0.00019716,15]
[328487859,1717439824320,150.5,0.00019706,15]
[328487860,1717439824882,150.5,0.00019696,15]
[328487861,1717439903988,-506.11774641,0.00010987,2]
[328487862,1717439904010,-481.46342056,0.00010988,2]
[328487863,1717439904032,-155.0,0.00010989,2]
[328487864,1717439904054,-625.06992541,0.0001099,2]
[328487865,1717439904076,-1899.51336956,0.00010991,2]
[328487866,1717439904102,-259.1,0.00011,2]
[328487867,1717439904124,-73.73553806,0.00011794,2]
[328487868,1717439905967,-76.26446194,0.00011794,2]
[328487869,1717439905990,-3923.73553806,0.000118,2]
[328487870,1717439906528,-4000.0,0.000118,2]
[328487871,1717439907142,-4000.0,0.000118,2]
[328487872,1717439907912,-4000.0,0.000118,2]
[328487873,1717439908653,-4000.0,0.000118,2]
[328487874,1717439909362,-4000.0,0.000118,2]
[328487875,1717439916890,-3503.0,0.000118,2]
[328487876,1717439926991,-4000.0,0.000118,2]
[328487877,1717439927625,-4000.0,0.000118,2]
[328487878,1717439928291,-4000.0,0.000118,2]
[328487879,1717439928933,-4000.0,0.000118,2]
[328487880,1717439940317,-1793.6436569,0.00011799,2]
[328487881,1717439940340,-365.09781292,0.00011799,2]
[328487882,1717439940363,-550.36567065,0.00011799,2]
[328487883,1717439940389,-1290.89285953,0.000118,2]
[328487884,1717439940856,-4000.0,0.000118,2]
[328487885,1717439941494,-4000.0,0.000118,2]
[328487886,1717439942197,-4000.0,0.000118,2]
[328487887,1717439942847,-150.0,0.00011799,2]
[328487888,1717439942871,-3850.0,0.000118,2]
[328487889,1717439952315,-4000.0,0.000118,2]
[328487890,1717439952926,-3478.271584,0.000118,2]
[328487891,1717439961610,521.728416,0.000118,2]
[328487892,1717439974130,500.0,0.00031,30]
[328487893,1717439975036,200.0,0.00031,30]
[328487894,1717439975678,-688.0,0.00011799,2]
[328487895,1717439975702,-3312.0,0.000118,2]
[328487896,1717439976292,-4000.0,0.000118,2]
[328487897,1717439976999,-4000.0,0.000118,2]
[328487898,1717439977649,-4000.0,0.000118,2]
[328487899,1717440014667,-2366.41570222,0.00011799,2]
[328487900,1717440014692,-1809.58429778,0.000118,2]
[328487905,1717440042845,166.79,0.00031,30]
[328487906,1717440060964,-209.23906583,0.00011796,2]
[328487907,1717440060988,-333.82252227,0.00011797,2]
[328487908,1717440061011,-155.0,0.00011798,2]
[328487909,1717440061034,-2356.68728622,0.000118,2]
[328487910,1717440061056,-155.0,0.00013989,2]
[328487911,1717440061079,-153.45,0.0001399,2]
[328487912,1717440061101,-326.093692,0.00013998,2]
[328487913,1717440061124,-287.70743368,0.00013998,2]
[328487914,1717440185106,150.5,0.00019716,15]
[328487915,1717440185634,150.5,0.00019706,15]
[328487916,1717440186160,150.5,0.00019696,15]
[328487917,1717440402447,200.0,0.00031,30]
[328487929,1717440544603,150.5,0.00019716,15]
[328487930,1717440545168,290.5,0.00019706,15]
[328487946,1717440631984,-2161.49403807,0.00011779,2]
[328487948,1717440631995,-337.93984265,0.0001178,2]
[328487949,1717440632006,-1182.59784839,0.00011781,2]
[328487950,1717440632020,-1183.81785383,0.00011781,2]
[328487951,1717440632031,-15830.18899626,0.00011784,2]
[328487952,1717440632044,-754.74831959,0.00011784,2]
[328487953,1717440632058,-922.53142088,0.00011784,2]
[328487954,1717440632071,-1486.7837916,0.00011784,2]
[328487955,1717440632084,-499.40807414,0.00011784,2]
[328487956,1717440632097,-43.3240321,0.00011784,2]
[328487957,1717440632108,-2298.51843157,0.00011784,2]
[328487959,1717440632295,-734.6075021,0.00011784,2]
[328487961,1717440632310,-10137.88226977,0.00011784,2]
[328487962,1717440632324,-888.50890406,0.00011784,2]
[328487963,1717440632338,-382.26851417,0.00011784,2]
[328487964,1717440632352,-1388.87999999,0.00011784,2]
[328487965,1717440632366,-1073.74607988,0.00011784,2]
[328487970,1717440632875,-2632.57293303,0.00011784,2]
[328487971,1717440632887,-19536.98463457,0.00011784,2]
[328487972,1717440632899,-27681.41538542,0.000118,2]
[328487973,1717440632911,-155.69003604,0.00012598,2]
[328487974,1717440632923,-204.59690359,0.00013972,2]
[328487975,1717440633112,-153.46,0.0001399,2]
[328487976,1717440633132,-493.44685405,0.00013998,2]
[328487977,1717440633142,-527.19686875,0.00013998,2]
[328487978,1717440633151,-211.32585879,0.00013998,2]
[328487979,1717440633161,-1380.30322781,0.00013998,2]
[328487980,1717440633170,-409.84120861,0.00013998,2]
[328487981,1717440633179,-601.71205611,0.00013998,2]
[328487982,1717440633189,-292.44502501,0.00013998,2]
[328487983,1717440633198,-155.0,0.00013998,2]
[328487984,1717440633208,-155.97820346,0.00013998,2]
[328487985,1717440633217,-268.32530534,0.00013998,2]
[328487986,1717440633227,-468.41631575,0.00013998,2]
[328487987,1717440633236,-283.12482256,0.00013998,2]
[328487988,1717440633246,-263.37325152,0.00013998,2]
[328487989,1717440633255,-241.1577456,0.00013998,2]
[328487990,1717440633264,-180.0,0.00013998,2]
[328487991,1717440633274,-200.87999732,0.00013998,2]
[328487992,1717440633283,-1273.86928001,0.00013998,2]
[328487993,1717440633294,-322.03848451,0.00013998,2]
[328487994,1717440633307,-155.84882623,0.00013998,2]
[328487995,1717440633316,-460.70093847,0.00013998,2]
[328487996,1717440633325,-345.71076375,0.00013998,2]
[328487997,1717440633334,-185.39805713,0.00013998,2]
[328487998,1717440633345,-574.7172452,0.00013998,2]
[328487999,1717440633355,-223.60705974,0.00013998,2]
[328488000,1717440633364,-622.1717266,0.00013998,2]
[328488001,1717440633374,-1827.59323947,0.00013998,2]
[328488002,1717440633383,-364.69907477,0.00013998,2]
[328488003,1717440633394,-309.65435133,0.00013998,2]
[328488004,1717440633403,-333.70942051,0.00013998,2]
[328488005,1717440633412,-224.80381824,0.00013998,2]
[328488006,1717440633421,-209.54847409,0.00013998,2]
[328488007,1717440633430,-291.67811797,0.00013998,2]
[328488008,1717440633439,-157.656427,0.00013998,2]
[328488009,1717440633449,-458.04205384,0.00013998,2]
[328488010,1717440633458,-159.43562717,0.00013998,2]
[328488011,1717440633468,-630.93237095,0.00013998,2]
[328488012,1717440633478,-27023.89200852,0.00013999,2]
[328488013,1717440633487,-192372.51689427,0.00013999,2]
[328488017,1717440638121,-155.0,0.00011779,2]
[328488019,1717440638131,-900.98696552,0.00013999,2]
[328488020,1717440638143,-86822.98629885,0.00013999,2]
[328488021,1717440638155,-69005.28595964,0.00013999,2]
[328488022,1717440638166,-288.74559076,0.00013999,2]
[328488023,1717440638178,-751.676,0.00013999,2]
[328488024,1717440638189,-10357.382788,0.00013999,2]
[328488025,1717440638201,-2319.86839981,0.00013999,2]
[328488026,1717440638213,-2284.96475,0.00013999,2]
[328488027,1717440638224,-532.82207945,0.00013999,2]
[328488028,1717440640429,-581.18109338,0.00013999,2]
[328488029,1717440640441,-6982.6374,0.00013999,2]
[328488030,1717440640453,-695.23,0.00013999,2]
[328488031,1717440640466,-47070.47101639,0.00013999,2]
[328488032,1717440640477,-150.0,0.00013999,2]
[328488033,1717440640487,-4346.7,0.00013999,2]
[328488034,1717440640496,-224.99,0.00013999,2]
[328488035,1717440640506,-362243.37798756,0.00014,2]
[328488036,1717440640517,-7738.26998734,0.00014,2]
[328488037,1717440640528,-1169.55400002,0.00014,2]
[328488044,1717440641093,-753.05286784,0.00014,2]
[328488045,1717440641104,-999.9998995,0.00014,2]
[328488046,1717440641115,-661.12196006,0.00014,2]
[328488047,1717440641127,-658.39,0.00014,2]
[328488048,1717440641138,-1374.81644872,0.00014,2]
[328488049,1717440641148,-1187.79169288,0.00014,2]
[328488050,1717440641160,-3236.2249575,0.00014,2]
[328488051,1717440641171,-4567.28728259,0.00014,2]
[328488052,1717440641182,-623.16656404,0.00014,2]
[328488053,1717440642172,-1129.499998,0.00014,2]
[328488056,1717440642183,-262.79677064,0.00014,2]
[328488058,1717440642194,-560.95884736,0.00014,2]
[328488120,1717440643173,-24014.26934797,0.00014,2]
[328488121,1717440643185,-507.53028692,0.00014,2]
[328488122,1717440643196,-814.22625206,0.00014,2]
[328488123,1717440643207,-13311.27102138,0.00014,2]
[328488124,1717440643218,-457.523041,0.00014,2]
[328488125,1717440643228,-527.23534668,0.00014,2]
[328488126,1717440643499,-46860.67726829,0.00014,2]
[328488127,1717440643511,-2659.37169153,0.00014,2]
[328488128,1717440643522,-3704.62993327,0.00014,2]
[328488129,1717440643533,-2707.33955007,0.00014,2]
[328488130,1717440643544,-39956.15051097,0.00014,2]
[328488131,1717440643556,-69391.89067,0.00014,2]
[328488132,1717440643567,-543.64021037,0.00014,2]
[328488133,1717440643577,-423.95581672,0.00014,2]
[328488135,1717440646185,-2365.28099281,0.00013999,2]
[328488136,1717440646195,-454.61833812,0.00013999,2]
[328488137,1717440646204,-2108.94170668,0.00014,2]
[328488138,1717440646871,-636.2039695,0.00014,2]
[328488139,1717440646883,-699.45346921,0.00014,2]
[328488140,1717440646895,-696.13304399,0.00014,2]
[328488141,1717440646907,-3251.74170898,0.00014,2]
[328488142,1717440646917,-694.56,0.00014,2]
[328488143,1717440646928,-429.34971866,0.00014,2]
[328488144,1717440646940,-19018.58718415,0.00014,2]
[328488145,1717440646950,-2874.13903805,0.00014,2]
[328488146,1717440646963,-1861.94711503,0.00014,2]
[328488147,1717440646979,-890.31731708,0.00014,2]
[328488150,1717440690201,282.59268548,0.00031,30]
[328488290,1717441832273,-161.84,0.00012338,2]
[328488291,1717441832283,-1440.99602538,0.00013763,2]
[328488292,1717441832292,-382.01150973,0.00013764,2]
[328488293,1717441832302,-535.5541103,0.00013852,2]
[328488294,1717441832311,-252.72064751,0.00013858,2]
[328488295,1717441832321,-150.0,0.00013899,2]
[328488296,1717441832330,-211.30063446,0.000139,2]
[328488297,1717441832339,-841.86273973,0.000139,2]
[328488298,1717441832348,-8045.40502423,0.000139,2]
[328488299,1717441832358,-166.51202761,0.000139,2]
[328488300,1717441832367,-207.71890159,0.000139,2]
[328488301,1717441832376,-157.12448071,0.000139,2]
[328488302,1717441832385,-152.09166539,0.000139,2]
[328488303,1717441832395,-11729.58937395,0.00013978,2]
[328488304,1717441832406,-3627.98174025,0.00013978,2]
[328488305,1717441832417,-423.04532265,0.00013978,2]
[328488306,1717441832429,-5427.60763907,0.00013978,2]
[328488307,1717441832441,-1012.30856095,0.00013987,2]
[328488308,1717441832452,-61152.36349753,0.00013988,2]
[328488309,1717441832464,-2407.76999996,0.00013988,2]
[328488310,1717441832476,-2217.18132602,0.00013988,2]
[328488311,1717441832487,-1039.56185241,0.00013988,2]
[328488312,1717441832533,-9639.44449427,0.00013988,2]
[328488313,1717441832544,-1057.3,0.00013988,2]
[328488314,1717441832555,-597.65331933,0.00013988,2]
[328488315,1717441838185,-8664.27166222,0.00013988,2]
[328488316,1717441838195,-4346.7,0.00013988,2]
[328488317,1717441838205,-1723.61,0.00013988,2]
[328488318,1717441838214,-3100.04,0.0001399,2]
[328488319,1717441838224,-499.99,0.0001399,2]
[328488320,1717441838233,-153.46,0.0001399,2]
[328488321,1717441838243,-8421.3144899,0.00013997,2]
[328488322,1717441838252,-224.99,0.00013997,2]
[328488323,1717441838261,-299.99,0.00013997,2]
[328488324,1717441838272,-337.93145394,0.00013998,2]
[328488325,1717441838282,-790.70683797,0.00013998,2]
[328488326,1717441838291,-155.0,0.00013998,2]
[328488327,1717441838301,-480.87424336,0.00013998,2]
[328488328,1717441838310,-2385.42283036,0.00013998,2]
[328488329,1717441838320,-282.47450302,0.00013998,2]
[328488330,1717441838330,-1246.52348474,0.00013998,2]
[328488331,1717441838339,-1252.23465962,0.00013999,2]
[328488332,1717441838360,-247395.86267143,0.00014,2]
[328488333,1717441838434,-1027.106765,0.00014,2]
[328488334,1717441838446,-424874.16294623,0.00014,2]
[328488335,1717441838458,-11086.24012462,0.00014,2]
[328488336,1717441838470,-1355.05554021,0.00014,2]
[328488337,1717441838482,-1168.87240888,0.00014,2]
[328488362,1717441841183,-269.976,0.00014,2]
[328488365,1717441841194,-6926.28116,0.00014,2]
[328488371,1717441841441,-1664.46807945,0.00014,2]
[328488372,1717441842227,-2253.62392482,0.00014,2]
[328488373,1717441842240,-125510.13761871,0.00014,2]
[328488374,1717441842252,-563438.89849885,0.00014,2]
[328488375,1717441842484,-1880.85,0.00014,2]
[328488388,1717441843323,-42380.47104642,0.00014,2]
[328488389,1717441843334,-4512.24898482,0.00014,2]
[328488390,1717441843347,-4128.75261965,0.00014,2]
[328488391,1717441843360,-294.631424,0.00014,2]
[328488392,1717441843372,-756736.23130996,0.00014,2]
[328488393,1717441843382,-190349.61310438,0.00014,2]
[328488394,1717441843391,-1805.15953,0.00014,2]
[328488395,1717441843401,-520.06,0.00014533,2]
[328488396,1717441843411,-4219.91,0.00014552,2]
[328488397,1717441843420,-167.9,0.00014571,2]
[328488398,1717441843430,-2057.76,0.00014702,2]
[328488399,1717441843440,-300.0,0.00014772,2]
[328488400,1717441843450,-200.0,0.00014837,2]
[328488401,1717441843460,-3184.17,0.0001484,2]
[328488402,1717441843470,-200.0,0.00015,2]
[328488403,1717441843480,-250.0,0.00015422,2]
[328488404,1717441843489,-23900.0,0.00015422,2]
[328488405,1717441843499,-378.93,0.00015422,2]
[328488406,1717441843508,-841.86273963,0.00015655,2]
[328488407,1717441843518,-201.53,0.00016201,2]
[328488408,1717441843528,-1675.89,0.00016645,2]
[328488409,1717441843538,-207.71890153,0.00016657,2]
[328488410,1717441843548,-768.21,0.00016672,2]
[328488411,1717441843558,-520.06,0.00016797,2]
[328488412,1717441843567,-298.07368483,0.00017259,2]
[328488413,1717441843577,-841.86273963,0.00017409,2]
[328488414,1717441843587,-3184.17,0.0001758,2]
[328488415,1717441843596,-162.3,0.00018425,2]
[328488416,1717441843606,-161.84,0.00018507,2]
[328488417,1717441843615,-1805.15954,0.00019,2]
[328488418,1717441843625,-520.06,0.00019061,2]
[328488419,1717441843636,-841.86273963,0.00019164,2]
[328488420,1717441843646,-672.7210461,0.00019302,2]
[328488421,1717441843655,-207.71890153,0.00019414,2]
[328488422,1717441843668,-226.51830624,0.000201,2]
[328488423,1717441843678,-3184.17,0.0002032,2]
[328488424,1717441843687,-841.86273963,0.00020918,2]
[328488425,1717441843696,-520.06,0.00021325,2]
[328488426,1717441843707,-378.93,0.00021591,2]
[328488427,1717441843717,-163.7,0.00021918,2]
[328488428,1717441843726,-2382.45,0.00022,2]
[328488429,1717441843737,-207.71890153,0.00022171,2]
[328488430,1717441843748,-151.15,0.00022607,2]
[328488431,1717441843759,-151.15,0.00022669,2]
[328488432,1717441843768,-841.86273963,0.00022673,2]
[328488433,1717441843778,-151.15,0.00022731,2]
[328488434,1717441843788,-151.15,0.00022793,2]
[328488435,1717441843798,-151.15,0.00022855,2]
[328488436,1717441843808,-167.9,0.00022895,2]
[328488437,1717441843818,-250.0,0.00022914,2]
[328488438,1717441843828,-151.15,0.00022917,2]
[328488439,1717441843838,-151.15,0.00022979,2]
[328488440,1717441843848,-151.15,0.00023041,2]
[328488441,1717441843858,-151.15,0.00023103,2]
[328488442,1717441843867,-151.15,0.00023165,2]
[328488443,1717441843878,-151.15,0.00023227,2]
[328488444,1717441843887,-151.15,0.00023289,2]
[328488445,1717441843897,-529.0,0.000233,3]
[328488446,1717441843907,-1138.0,0.000233,3]
[328488447,1717441843917,-151.15,0.00023351,2]
[328488448,1717441843927,-151.15,0.00023413,2]
[328488449,1717441843936,-151.15,0.00023475,2]
[328488450,1717441843946,-151.15,0.00023537,2]
[328488451,1717441843957,-520.06,0.00023589,2]
[328488452,1717441843966,-151.15,0.00023599,2]
[328488453,1717441843976,-151.15,0.00023661,2]
[328488454,1717441843985,-151.15,0.00023723,2]
[328488455,1717441843995,-151.15,0.00023785,2]
[328488456,1717441844005,-166.3,0.00023935,2]
[328488457,1717441844014,-1805.15953,0.00024,2]
[328488458,1717441844025,-159.86,0.00024384,2]
[328488459,1717441844036,-155.4,0.00024384,2]
[328488460,1717441844046,-158.75,0.00024384,2]
[328488461,1717441844056,-155.11,0.00024384,2]
[328488462,1717441844067,-841.86273963,0.00024427,2]
[328488463,1717441844076,-207.71890153,0.00024929,2]
[328488464,1717441844086,-153.32,0.00024961,2]
[328488465,1717441844096,-153.32,0.00024979,2]
[328488466,1717441844105,-153.32,0.00024997,2]
[328488467,1717441844115,-1173.98330068,0.00025,2]
[328488468,1717441844124,-153.32,0.00025015,2]
[328488469,1717441844134,-153.32,0.00025033,2]
[328488470,1717441844144,-153.32,0.0002505,2]
[328488471,1717441844154,-153.32,0.00025068,2]
[328488472,1717441844164,-153.32,0.00025086,2]
[328488473,1717441844173,-1000.0,0.0002532,2]
[328488474,1717441844183,-520.06,0.00025853,2]
[328488475,1717441844192,-841.86273963,0.00026182,2]
[328488476,1717441844201,-150.0,0.00027397,2]
[328488477,1717441844211,-156.2,0.000274,2]
[328488478,1717441844220,-156.2,0.000274,2]
[328488479,1717441844230,-156.2,0.000274,2]
[328488480,1717441844240,-156.2,0.000274,2]
[328488481,1717441844249,-207.71890153,0.00027686,2]
[328488482,1717441844259,-841.86273963,0.00027936,2]
[328488483,1717441844268,-520.06,0.00028117,2]
[328488484,1717441844278,-1000.0,0.00028484,2]
[328488485,1717441844287,-1805.15954,0.00029,2]
[328488486,1717441844296,-394.221131,0.000295,2]
[328488487,1717441844305,-841.86273963,0.00029691,2]
[328488488,1717441844315,-591.331696,0.000298,2]
[328488489,1717441844324,-150.43155596,0.0002995,2]
[328488490,1717441844333,-788.442262,0.0003,2]
[328488491,1717441844343,-11063.0781876,0.0003,3]
[328488492,1717441844352,-7056.74448471,0.0003,4]
[328488493,1717441844362,-985.552827,0.000302,2]
[328488494,1717441844371,-158.03040467,0.00030331,7]
[328488495,1717441844380,-520.06,0.00030381,2]
[328488496,1717441844389,-207.71890153,0.00030443,2]
[328488497,1717441844399,-1379.773958,0.000305,2]
[328488498,1717441844408,-154.36462274,0.00030645,7]
[328488499,1717441844417,-155.0,0.00031,4]
[328488500,1717441844427,-250.93,0.00031,2]
[328488501,1717441844436,-500.0,0.00031,2]
[328488502,1717441844445,-500.0,0.00031,2]
[328488503,1717441844454,-500.0,0.00031,2]
[328488504,1717441844464,-500.0,0.00031,2]
[328488505,1717441844687,-500.0,0.00031,2]
[328488506,1717441844697,-500.0,0.00031,2]
[328488507,1717441844707,-500.0,0.00031,2]
[328488508,1717441844717,-2000.0,0.00031,2]
[328488509,1717441844726,-200.0,0.00031,2]
[328488510,1717441844735,-2000.0,0.0003131,2]
[328488511,1717441844745,-200.0,0.0003131,2]
[328488512,1717441844755,-841.86273963,0.00031445,3]
[328488513,1717441844764,-1326.92691911,0.00031623,2]
[328488514,1717441844774,-1000.0,0.00031649,2]
[328488515,1717441844783,-151.83882975,0.00032078,7]
[328488516,1717441844792,-180.0,0.000323,17]
[328488517,1717441844802,-180.0,0.000323,17]
[328488518,1717441844811,-643.0,0.00032301,2]
[328488519,1717441844820,-544.0,0.00032301,2]
[328488520,1717441844830,-1052.72,0.00032603,2]
[328488521,1717441844840,-643.0,0.00032634,2]
[328488522,1717441844849,-544.0,0.00032634,2]
[328488523,1717441844859,-520.06,0.00032644,2]
[328488524,1717441844868,-204.59690359,0.00032776,2]
[328488525,1717441844878,-7085.55490625,0.00032776,2]
[328488526,1717441844888,-150.0,0.00032875,7]
[328488527,1717441844898,-508.93361111,0.00032876,13]
[328488528,1717441844908,-500.0,0.00032876,13]
[328488529,1717441844918,-500.0,0.00032876,13]
[328488530,1717441844928,-500.0,0.00032876,13]
[328488531,1717441844939,-500.0,0.00032876,13]
[328488532,1717441844948,-504.86617451,0.00032876,13]
[328488533,1717441844959,-505.62915126,0.00032876,13]
[328488534,1717441844968,-641.48854914,0.00032876,13]
[328488535,1717441844978,-496.57772636,0.00032876,13]
[328488536,1717441844988,-500.0,0.00032876,13]
[328488537,1717441844997,-507.21240292,0.00032876,13]
[328488538,1717441845007,-509.73738986,0.00032876,13]
[328488539,1717441845017,-503.60108193,0.00032876,13]
[328488540,1717441845026,-505.80048751,0.00032876,13]
[328488541,1717441845036,-507.78235711,0.00032876,13]
[328488542,1717441845046,-504.92973892,0.00032876,13]
[328488543,1717441845056,-507.22054481,0.00032876,13]
[328488544,1717441845066,-507.26712478,0.00032876,13]
[328488545,1717441845076,-505.88934491,0.00032876,13]
[328488546,1717441845085,-193.15230384,0.00032876,13]
[328488547,1717441845095,-161.59383203,0.00032876,13]
[328488548,1717441845104,-511.86478704,0.00032876,13]
[328488549,1717441845114,-500.0,0.00032876,13]
[328488550,1717441845123,-500.0,0.00032876,13]
[328488551,1717441845133,-736.92,0.00032876,13]
[328488552,1717441845143,-500.0,0.00032876,13]
[328488553,1717441845152,-736.92,0.00032876,13]
[328488554,1717441845162,-500.0,0.00032876,13]
[328488555,1717441845172,-736.92,0.00032876,13]
[328488556,1717441845182,-500.0,0.00032876,13]
[328488557,1717441845190,-736.92,0.00032876,13]
[328488558,1717441845199,-500.0,0.00032876,13]
[328488559,1717441845208,-736.92,0.00032876,13]
[328488560,1717441845218,-500.0,0.00032876,13]
[328488561,1717441845228,-500.0,0.00032876,13]
[328488562,1717441845238,-736.92,0.00032876,13]
[328488563,1717441845248,-561.12112474,0.00032876,13]
[328488564,1717441845258,-736.92,0.00032876,13]
[328488565,1717441845267,-736.92,0.00032876,13]
[328488566,1717441845277,-736.92,0.00032876,13]
[328488567,1717441845287,-736.92,0.00032876,13]
[328488568,1717441845296,-736.92,0.00032876,13]
[328488569,1717441845306,-736.92,0.00032876,13]
[328488570,1717441845316,-736.92,0.00032876,13]
[328488571,1717441845325,-736.92,0.00032876,13]
[328488572,1717441845335,-736.92,0.00032876,13]
[328488573,1717441845346,-500.0,0.00032876,13]
[328488574,1717441845355,-500.0,0.00032876,13]
[328488575,1717441845365,-500.0,0.00032876,13]
[328488576,1717441845374,-327.18212379,0.00032876,13]
[328488577,1717441845383,-500.0,0.00032876,13]
[328488578,1717441845393,-284.38374434,0.00032876,13]
[328488579,1717441845402,-515.16993707,0.00032876,13]
[328488580,1717441845412,-513.25719448,0.00032876,13]
[328488581,1717441845421,-500.0,0.00032876,13]
[328488582,1717441845430,-522.02378386,0.00032876,13]
[328488583,1717441845440,-500.0,0.00032876,13]
[328488584,1717441845449,-500.0,0.00032876,13]
[328488585,1717441845459,-500.0,0.00032876,13]
[328488586,1717441845469,-500.0,0.00032876,13]
[328488587,1717441845479,-500.0,0.00032876,13]
[328488588,1717441845488,-345.80020704,0.00032876,13]
[328488589,1717441845499,-517.39517308,0.00032876,13]
[328488590,1717441845508,-509.16929798,0.00032876,13]
[328488591,1717441845518,-517.19754731,0.00032876,13]
[328488592,1717441845528,-518.07980981,0.00032876,13]
[328488593,1717441845537,-500.0,0.00032876,13]
[328488594,1717441845547,-500.0,0.00032876,13]
[328488595,1717441845556,-500.0,0.00032876,13]
[328488596,1717441845566,-360.85691993,0.00032876,13]
[328488597,1717441845575,-500.0,0.00032876,13]
[328488598,1717441845584,-279.72336454,0.00032876,13]
[328488599,1717441845594,-507.18770616,0.00032876,13]